Cogmind - Beta 16 @@@ ROGUE MODE // 2025.11.15 @ 00:09:18 Player: Lazz Result: Destroyed by G-47 Trooper with Particle Gun Performance ------------- Evolutions (0) 0 Regions Visited (2) 400 Robots Destroyed (21) 105 Value Destroyed (478) 478 Prototype IDs (0) 0 Alien Tech Used (0) 0 Bonus (0) 0 TOTAL SCORE: 983 Bonus ------- None Cogmind --------- Core Integrity 0/250 Matter 227/300 Energy 125/125 System Corruption 0% Temperature Cool (13) Movement Treading (160) Location -10/Mines Parts ------- > --- POWER (1) -------- Light Ion Engine > --- PROPULSION (2) --- Light Treads Light Treads > --- UTILITY (2) ------ Medium Storage Unit Signal Interpreter > --- WEAPON (2) ------- Grenade Launcher > --- INVENTORY (10) --- Light Treads Improved Heat Sink Improved Terrain Scanner Terrain Scan Processor Propulsion Shielding Peak State ------------ > --- POWER ------------ Light Ion Engine > --- PROPULSION ------- Aluminum Leg Aluminum Leg > --- UTILITY ---------- Small Storage Unit Improved Terrain Scanner > --- WEAPON ----------- EM Pulse Gun Medium Laser > --- INVENTORY -------- Light Ion Engine Light Treads Light Treads Small Laser [Rating: 9] Favorites ----------- Power Light Ion Engine Engine Light Ion Engine Propulsion Aluminum Leg Treads Light Treads Leg Aluminum Leg Utility Medium Storage Unit Device Improved Terrain Scanner Storage Medium Storage Unit Processor Signal Interpreter Weapon Medium Laser Energy Gun Medium Laser Launcher Grenade Launcher Build | -11 -10 -10 ------- Run | Yrd Mat Min Slots Evolved . | . . . Power . | . . . Propulsion . | . . . Utility . | . . . Weapon . | . . . Parts Attached 16 | 6 6 4 Power 3 | 1 1 1 Engine 3 | 1 1 1 Core . | . . . Reactor . | . . . Propulsion 4 | 2 . 2 Treads 2 | . . 2 Leg 2 | 2 . . Wheel . | . . . Hover . | . . . Flight . | . . . Utility 4 | 1 3 . Device 1 | . 1 . Storage 2 | 1 1 . Processor 1 | . 1 . Hackware . | . . . Protection . | . . . Artifact . | . . . Weapon 5 | 2 2 1 Energy Gun 3 | 2 1 . Energy Cannon . | . . . Ballistic Gun . | . . . Ballistic Cannon . | . . . Launcher 2 | . 1 1 Special Weapon . | . . . Impact Weapon . | . . . Slashing Weapon . | . . . Piercing Weapon . | . . . Special Melee Weapon . | . . . Unidentified Prototypes . | . . . Parts Lost 7 | . 4 3 Power 1 | . 1 . Propulsion 2 | . 1 1 Utility . | . . . Weapon 4 | . 2 2 Highest Loss Streak 4 | . 4 2 To Critical Strikes . | . . . Average Backups 6 | 3 8 6 Power . | . 1 . Propulsion 2 | 1 2 1 Utility 2 | . 2 4 Weapon 1 | . 1 1 Tool/Special . | . . . Unused Backups 4 | . . 4 Power . | . . . Propulsion 1 | . . 1 Utility 3 | . . 3 Weapon . | . . . Tool/Special . | . . . Average Slot Usage (%) 89 | . 93 79 Engine 11 | . 12 11 Treads 5 | . . 23 Leg 20 | . 26 . Device 4 | . 5 . Storage 14 | . 14 14 Processor 8 | . 7 14 Energy Gun 23 | . 26 13 Peak Build Rating 9 | 6 9 7 Average Rating 7 | 4 7 6 On Entrance 3 | . 6 5 Avg Prop Armor Cover (%) . | . . . Naked Turns . | . . . Heaviest Build 18 | 12 18 14 Greatest Support 40 | 20 20 40 Greatest Overweight (x) 3 | 1 1 3 Average Overweight (x) . | . . . Largest Inventory Capacity 10 | 8 10 10 Average Capacity 9 | 7 9 10 Most Carried 10 | 6 10 10 Average Carried 7 | 3 8 6 Final Capacity 10 | 8 10 10 Final Carried 10 | 5 10 5 Class Distribution -------------------- 100% | Mutant Dominant Class ---------------- Mutant | -10/Materials Mutant | -10/Mines Resources | -11 -10 -10 ----------- Run | Yrd Mat Min Matter Collected 352 | 260 50 42 Remotely . | . . . Salvage Created 608 | 130 389 89 Parts 38 | 12 24 2 Haulers Intercepted 1 | . 1 . Recyclers Shooed . | . . . Parts Field Recycled . | . . . Retrieved Matter . | . . . Parts Self-Destructed . | . . . Prevented . | . . . Parts Restored . | . . . Kills | -11 -10 -10 ------- Run | Yrd Mat Min Combat Hostiles Destroyed 11 | . 8 3 Guns 8 | . 6 2 AOE 3 | . 2 1 Classes Destroyed 8 | 3 5 . Worker 1 | 1 . . Builder 1 | . 1 . Tunneler 3 | 2 . 1 Hauler 1 | . 1 . Recycler 1 | 1 . . Watcher 3 | . 3 . Swarmer 2 | . 2 . Grunt 9 | . 6 3 Best Kill Streak 2 | 2 2 2 Combat Bots Only 2 | . 2 2 Max Kills in Single Turn 2 | 1 2 1 Gunslinging . | . . . Exploded 1 | . 1 1 Melee . | . . . Uniques/NPCs Destroyed . | . . . Combat | -11 -10 -10 -------- Run | Yrd Mat Min Hostile Shots Fired 85 | . 53 32 Missed 25 | . 16 9 Hits 60 | . 37 23 Projectile 60 | . 37 23 Critical Strikes 1 | . 1 . Damage Taken 943 | . 550 393 Core 255 | . 134 121 Absorbed by Shields . | . . . Core Remaining (%) 100 | 100 . . Volleys Fired 56 | 11 33 12 Largest 2 | 2 2 2 Hottest 90 | 90 90 70 Shots Fired 102 | 22 64 16 Gun 93 | 22 61 10 Cannon . | . . . Launcher 9 | . 3 6 Special . | . . . Kinetic . | . . . Thermal 53 | 11 32 10 Explosive 9 | . 3 6 Electromagnetic 40 | 11 29 . Robot Hit Streak 14 | 4 10 14 Robot Miss Streak 4 | 4 3 1 Penetration Max . | . . . Secondary Targets 2 | . 2 . Max Gunslinging Chain 1 | . 1 . Shots Hit Robots 69 | 10 45 14 Core Hits 33 | 4 22 7 Critical Kills . | . . . Critical Parts Destroyed . | . . . Critical Strikes 3 | . 3 . Burn 3 | . 3 . Melee Attacks . | . . . Impact . | . . . Slashing . | . . . Piercing . | . . . Sneak Attacks . | . . . Combat Hostiles . | . . . Follow-up Attacks . | . . . Damage Inflicted 1344 | 151 839 354 Guns 845 | 151 596 98 Cannons . | . . . Explosions 499 | . 243 256 Melee . | . . . Ramming . | . . . Kinetic . | . . . Thermal 539 | 63 378 98 Explosive 426 | . 170 256 Electromagnetic 379 | 88 291 . Impact . | . . . Slashing . | . . . Piercing . | . . . Highest Corruption . | . . . Average Corruption . | . . . Corruption Purged . | . . . Corruption Blocked . | . . . Overload Shots . | . . . Overflow Damage . | . . . Projectiles . | . . . Explosions . | . . . Melee . | . . . Knockbacks . | . . . Impact . | . . . Kinetic . | . . . Secondary . | . . . Self-Inflicted Damage 161 | . 96 65 Shots 8 | . 4 4 Rammed . | . . . Targets Rammed . | . . . Kicked . | . . . Crushed . | . . . Highest Temperature 288 | 150 288 49 Average Temperature 87 | 76 102 23 Received Heat Transfer 441 | . 252 189 Siege Activations . | . . . Martial Activations . | . . . Shielding Activations . | . . . Robots Disrupted . | . . . Combat Hostiles . | . . . Robots Corrupted . | . . . Combat Hostiles . | . . . Parts Fried 2 | . 2 . Impact Corruptions . | . . . Robots Melted . | . . . Combat Hostiles . | . . . Parts Melted 1 | . 1 . Heat Transferred 1633 | 185 1223 225 Parts Sabotaged . | . . . Parts Stolen . | . . . Parts Stripped . | . . . Power Chain Reactions 2 | . 2 . Alert | -11 -10 -10 ------- Run | Yrd Mat Min Maximum Alert Level . | . . . Low Security (%) 100 | 100 100 100 Level 1 . | . . . Level 2 . | . . . Level 3 . | . . . Level 4 . | . . . Level 5 . | . . . High Security . | . . . Max Security . | . . . Peak Influence 92 | 5 50 92 Initial 4 | . . 4 Average 21 | 1 16 60 Influence Increases 435 | 20 245 170 Destroy 0b10 Robot/C 220 | . 160 60 Destroy 0b10 Robot/NC 50 | 20 25 5 Destroy Leader 48 | . 38 10 Successful Hack 15 | . 5 10 Disable Machine 45 | . . 45 Destroy Structure 42 | . 17 25 Lose Combat Pursuer 15 | . . 15 Influence Decreases 365 | 20 234 111 Entered New Map 7 | . . 7 Time Decay 316 | 20 216 80 Lost Part 42 | . 18 24 Squads Dispatched . | . . . Investigation . | . . . Extermination . | . . . Reinforcement . | . . . Assault . | . . . Garrison . | . . . Intercept . | . . . Searches Triggered . | . . . Construction Impeded . | . . . Haulers Reinforced . | . . . Active Scanning Responses . | . . . Cargo Convoy Interrupts . | . . . Stealth | -11 -10 -10 --------- Run | Yrd Mat Min Distress Signals . | . . . Communications Jammed . | . . . Distress Signals . | . . . Times Spotted 17 | . 12 5 Peak Tracking Total 2 | . 2 2 Tactical Retreats 1 | . . 1 Traps | -11 -10 -10 ------- Run | Yrd Mat Min Traps Triggered . | . . . Indirectly . | . . . Trap Hack Attempts . | . . . Triggered . | . . . Disarmed . | . . . Reprogrammed . | . . . Reused . | . . . Traps Extracted . | . . . Installed . | . . . Triggered . | . . . Machines | -11 -10 -10 ---------- Run | Yrd Mat Min Machines Disabled 3 | . . 3 Max in Single Turn 3 | . . 3 Machines Repaired . | . . . Machines Dismantled . | . . . Machines Sabotaged . | . . . Overloaded Fab Kills . | . . . Hacking | -11 -10 -10 --------- Run | Yrd Mat Min Machines Accessed 2 | . 1 1 Terminals 2 | . 1 1 Fabricators . | . . . Repair Stations . | . . . Recycling Units . | . . . Scanalyzers . | . . . Garrison Access . | . . . Total Hacks 6 | . 2 4 Successful 3 | . 1 2 Failed 3 | . 1 2 Catastrophic 1 | . 1 . Database Lockouts . | . . . Manual 3 | . 1 2 Terminals 6 | . 2 4 Fabricators . | . . . Repair Stations . | . . . Recycling Units . | . . . Scanalyzers . | . . . Garrison Access . | . . . Terminal Hacks 2 | . 1 1 Terminal Index 1 | . 1 . Zone Layout 1 | . . 1 Fabricator Hacks . | . . . Repair Station Hacks . | . . . Recycling Unit Hacks . | . . . Scanalyzer . | . . . Garrison Access Hacks . | . . . Unauthorized Hacks 1 | . . 1 Terminals 1 | . . 1 Botnet 1 | . . 1 Fabricators . | . . . Repair Stations . | . . . Recycling Units . | . . . Scanalyzers . | . . . Garrison Access . | . . . Data Cores Recovered . | . . . Used . | . . . Hacking Detections 2 | . 1 1 Full Trace Events 1 | . . 1 Feedback Events . | . . . Feedback Blocked . | . . . Robot Schematics Acquired . | . . . Robots Built . | . . . Authchips . | . . . Time . | . . . Total Robot Build Rating . | . . . Part Schematics Acquired . | . . . Parts Built . | . . . Authchips . | . . . Time . | . . . Total Part Build Rating . | . . . Part Studies Acquired . | . . . Parts Repaired . | . . . Time . | . . . Parts Recycled . | . . . Recycled Matter . | . . . Retrieved Matter . | . . . Retrieved Components . | . . . Parts Scanalyzed . | . . . Part Schematics Acquired . | . . . Parts Damaged . | . . . Bothacking | -11 -10 -10 ------------ Run | Yrd Mat Min Used RIF Installer . | . . . Robots Hacked . | . . . Non-combat . | . . . Combat . | . . . Robot Hacks Applied . | . . . Relay Couplers Released . | . . . Fabnet Peak Effective % . | . . . Robots Rewired . | . . . Allies Hacked . | . . . Hacks Repelled . | . . . Allies | -11 -10 -10 -------- Run | Yrd Mat Min Total Allies . | . . . Largest Group . | . . . Highest-Rated Group . | . . . Highest-Rated Ally . | . . . Total Orders . | . . . Ally Attacks . | . . . Total Damage . | . . . Kills . | . . . Allies Corrupted . | . . . Allies Melted . | . . . Intel | -11 -10 -10 ------- Run | Yrd Mat Min Active Infowar (turns) 217 | . 217 . Terrain 217 | . 217 . Robot Analysis Total . | . . . Derelict Logs Recovered 1 | . . 1 Drone Launches . | . . . Drone Recoveries . | . . . Exploration | -11 -10 -10 ------------- Run | Yrd Mat Min Turns Passed 871 | 146 564 161 Spaces Moved 504 | 83 342 79 Core 9 | 8 . 1 Treads 78 | . . 78 Legs 417 | 75 342 . Wheels . | . . . Hover . | . . . Flight . | . . . Fastest Speed 50 | 50 120 160 Average Speed 130 | 116 127 160 Slowest Speed 200 | 120 190 200 Overloaded Moves . | . . . Propulsion Burnouts . | . . . Robots Hopped . | . . . Potential Cave-ins . | . . . Cave-ins Triggered . | . . . Exploration Rate (%) 27 | 6 50 25 Regions Visited 2 Branch Regions 1 Pre-discovered Areas 1 | . . 1 Known Exits Taken 1 | . 1 . Unknown Exits Taken 1 | 1 . . Scrap Searched . | . . . Spaces Dug . | . . . Terrain Destroyed 42 | . 14 28 Melee . | . . . Projectile . | . . . AOE 42 | . 14 28 Terrain Rammed . | . . . Walls Destroyed . | . . . Machines Disabled . | . . . Actions | -11 -10 -10 --------- Run | Yrd Mat Min Total 615 | 110 408 97 Wait 18 | . 17 1 Move 502 | 82 341 79 Hop . | . . . Pick Up 19 | 11 8 . Fast Attach 1 | . 1 . Attach 14 | 6 3 5 Detach 1 | . 1 . Swap 2 | . 2 . Drop 2 | . 2 . Fire 56 | 11 33 12 Melee . | . . . Ram . | . . . Kick . | . . . Crush . | . . . Escape Stasis . | . . . Rewire . | . . . Trap . | . . . Miscellaneous . | . . . Route ------- -11/Scrapyard -10/Materials (discovered 2 exits: *Mat / *Min) -10/Mines History --------- Turn | Location | Event 9 | -11/Scrapyard | Discovered new exit (range 15) 147 | -11/Scrapyard | Entered Materials 314 | -10/Materials | Build established: Mutant 393 | -10/Materials | Discovered new exit (range 14) 412 | -10/Materials | Identified exit to Materials 643 | -10/Materials | Core integrity fell below 50% 659 | -10/Materials | Discovered new exit (range 13) 671 | -10/Materials | Lost 4 parts (1p1n2w) 687 | -10/Materials | Identified exit to Mines 711 | -10/Materials | Entered Mines 728 | -10/Mines | Core integrity fell below 20% 823 | -10/Mines | Learned location of Mines (-9) 872 | -10/Mines | Destroyed by G-47 Trooper with Particle Gun Last Messages --------------- 00712_ Aluminum Leg destroyed. 00717_ Core Extractor disabled. 00725_ G-34 Mercenary destroyed. 00729_ Grenade Launcher destroyed. 00732_ G-47 Trooper destroyed. 00734_ Acquired 42 matter. 00749_ Connecting with Terminal... >>Layout(Zone) Retrieving Zone 7J layout... Downloaded map data. >>Trojan(Botnet) Trojan loaded successfully. Testing... Terminal linked with 0 systems. Awaiting botnet instructions. 00823_ Acquired derelict log, extracted data. World map updated: -9/Mines. 00866_ Sml. Laser destroyed. 00868_ G-34 Mercenary destroyed. 00870_ T-07 Excavator destroyed. Map ----- +----------------------------------------------------+ | ???????????????????????????? | | ???????????????????????????? | | ???????????????????????????? | | ???????????????????????????? | | ???????????????????????????? | | ???????????????????????????? | | ???????????????????????????? | | ???????????????????????????? | | ???????????????????????????? | | ???????????????????????????? | | ???????????????????????????? | | ???????????????????????????? | | ???????????????????????????? | | ???????????????????????????? | | ???????????????????????????? | | ???????????????????????????? | | ???????????????????????????? | | ???????????????????????????? | | ??####?????????????????????? | | ??# #?????????????????????? | | ??# #?????????????????????? | | ??# ##????????????????????? | | ?## ####?????????????????? | | ## #?????????????????? | | # #?????????????????? | | ?# @ #?????????????????? | | ?# g #?????????????????? | | ?## ##?????????????????? | | ??# %! #??????????????????? | | ??# ########??????????????? | | ??## #?????####?????? | | ???######## #????? #?????? | | ??????????# #????? #????## | | ??????????# ###???# #???## | | ??????????# #???# #??## | | ??????????### ##### #?## | | ????????????# #?# | | ????????????####### ### | | ?????????????###### ## | | ??????" """ | | ?????? """ | | ?????????####### """ | | ???????????????# | | ???????????????# | | ???????????????####### ## | | ?????????????????????######? | | ???????????????????????????? | | | | | | | +----------------------------------------------------+ Best States ------------- Heat Dissipation 25 Energy Generation 10 Energy Capacity 125 Matter Stores 300 Matter Capacity 300 Sight Range 16 Terrain Scan Range 16 Terrain Scan Density 10 Evasion (%) 55 Recoil Reduction 2 Item Schematics ----------------- None Robot Schematics ------------------ None Fabricated ------------ Nothing Repaired ---------- Nothing Studied --------- None Alien Tech Used ----------------- None Achievements -------------- None Challenges ------------ None Game ------ Seed DiametricArmoredWarhead Manual? 0 Play Time 00:10:21 Cumulative 76.9 hours Start 2025.11.14 @ 23:59:53 End 2025.11.15 @ 00:09:18 Sessions 1 Manual Loads 0 Difficulty Rogue Special Mode None Game No. 103 Rogue 103 Adventurer 0 Explorer 0 Win Type - Total 1 Types 1/0/0/0/0/0/0/0/0/0 Lore% 46 Gallery% 48 Achievement% 35 Wizard Run 0 Options --------- Layout 2 ASCII 0 Keyboard 0 Movement Mouse Keybinds 0 Fullscreen 1 Font 16/SmallcapsGlow Map View 25x24 Zoom Use 98% Tactical HUD 1 Map Filters NONE Filters NONE Steam SD RUN: 5ddbc1e3-98a9-47b0-8726-d4ab668185aa